fUST/lending_fUST_20250718
["ID","MTS","AMOUNT","RATE_DAILY","PERIOD"]
[372912081,1752803448377,-181.721608,0.00020409,2]
[372912083,1752803448386,-1201.251549,0.00020409,2]
[372912085,1752803448395,-1201.251549,0.00020409,2]
[372912087,1752803448405,-1000.0,0.00020521,2]
[372912089,1752803448414,-505.90455104,0.00020521,2]
[372912091,1752803448424,-1003.42127867,0.00020521,2]
[372912092,1752803448434,-490.2619003,0.00020547,2]
[372912094,1752803448444,-522.63,0.00020547,2]
[372912096,1752803448454,-588.97,0.00020547,2]
[372912098,1752803448464,-1326.95,0.00020547,2]
[372912100,1752803448473,-635.59,0.00020547,2]
[372912102,1752803448482,-183.30714067,0.00020547,2]
[372912104,1752803448492,-1029.16,0.00020547,2]
[372912106,1752803448501,-779.11,0.00020547,2]
[372912108,1752803448511,-1340.87,0.00020547,2]
[372912110,1752803448520,-685.18,0.00020547,2]
[372912111,1752803448530,-733.38,0.00020547,2]
[372912113,1752803448540,-493.59,0.00020547,2]
[372912115,1752803448550,-493.43,0.00020547,2]
[372912117,1752803448559,-460.0,0.00020547,2]
[372912119,1752803448570,-200.84253818,0.00020547,2]
[372912121,1752803448579,-598.45,0.00020547,2]
[372912123,1752803448590,-2425.12,0.00020547,2]
[372912125,1752803448602,-1316.85,0.00020547,2]
[372912128,1752803448613,-468.0,0.00020579,2]
[372912129,1752803448625,-500.0,0.00020579,2]
[372912132,1752803448635,-160.0,0.00020596,3]
[372912134,1752803448646,-161.0201841,0.00020596,5]
[372912136,1752803448657,-151.0,0.000206,4]
[372912138,1752803448667,-151.0,0.00020685,2]
[372912140,1752803448678,-153.693618,0.00020685,2]
[372912142,1752803448688,-151.0,0.00020685,2]
[372912144,1752803448698,-151.0,0.00020685,2]
[372912146,1752803448707,-152.03336,0.00020685,2]
[372912148,1752803448716,-151.0,0.00020685,2]
[372912149,1752803448726,-151.0,0.00020685,2]
[372912151,1752803448735,-156.579367,0.00020685,2]
[372912153,1752803448744,-156.579367,0.00020685,2]
[372912155,1752803448754,-2000.0,0.000208,8]
[372912157,1752803448764,-522.63,0.00020821,2]
[372912159,1752803448773,-588.97,0.00020821,2]
[372912161,1752803448784,-1326.95,0.00020821,2]
[372912163,1752803448794,-635.59,0.00020821,2]
[372912165,1752803448804,-1029.16,0.00020821,2]
[372912167,1752803448813,-779.11,0.00020821,2]
[372912169,1752803448823,-1340.87,0.00020821,2]
[372912171,1752803448833,-685.18,0.00020821,2]
[372912174,1752803448843,-733.38,0.00020821,2]
[372912176,1752803448854,-493.59,0.00020821,2]
[372912178,1752803448865,-493.43,0.00020821,2]
[372912180,1752803448874,-460.0,0.00020821,2]
[372912182,1752803448884,-598.45,0.00020821,2]
[372912184,1752803448894,-2425.12,0.00020821,2]
[372912186,1752803448903,-1316.85,0.00020821,2]
[372912187,1752803448913,-468.0,0.00020853,2]
[372912190,1752803448922,-500.0,0.00020853,2]
[372912191,1752803448932,-150.03597772,0.00020867,2]
[372912194,1752803448942,-151.0,0.000209,4]
[372912195,1752803448951,-970.829148,0.00020941,8]
[372912198,1752803448962,-25000.0,0.00020957,2]
[372912199,1752803448971,-151.0,0.00020957,2]
[372912201,1752803448981,-151.0,0.00020957,2]
[372912203,1752803448991,-271.951834,0.00020957,2]
[372912205,1752803449002,-151.0,0.00020957,2]
[372912207,1752803449012,-261.252075,0.00020957,2]
[372912209,1752803449022,-153.438271,0.00020957,2]
[372912211,1752803449032,-151.0,0.00020957,2]
[372912213,1752803449041,-264.386969,0.00020957,2]
[372912215,1752803449051,-264.386969,0.00020957,2]
[372912217,1752803449060,-151.0,0.00020957,2]
[372912219,1752803449070,-151.0,0.00020957,2]
[372912221,1752803449079,-151.0,0.00020957,2]
[372912223,1752803449089,-1201.251549,0.00020957,2]
[372912225,1752803449100,-1201.251549,0.00020957,2]
[372912227,1752803449109,-178.80003706,0.00020991,2]
[372912229,1752803449119,-725.162,0.00020991,2]
[372912232,1752803449129,-2693.31911853,0.00020995,2]
[372912234,1752803449139,-161.0,0.00021,3]
[372912236,1752803449154,-161.0,0.00021,3]
[372912238,1752803449163,-161.0,0.00021,3]
[372912240,1752803449173,-162.67478966,0.00021,3]
[372912242,1752803449182,-507.19124301,0.00021068,2]
[372912244,1752803449192,-151.0,0.00021093,2]
[372912245,1752803449201,-151.0,0.00021093,2]
[372912246,1752803449211,-151.0,0.00021095,2]
[372912247,1752803449220,-151.0,0.00021095,2]
[372912248,1752803449230,-151.0,0.00021095,2]
[372912249,1752803449239,-151.932486,0.00021095,2]
[372912250,1752803449248,-151.0,0.00021095,2]
[372912251,1752803449258,-151.0,0.00021095,2]
[372912252,1752803449267,-156.579367,0.00021095,2]
[372912253,1752803449276,-156.579367,0.00021095,2]
[372912254,1752803449285,-172.867184,0.00021095,2]
[372912255,1752803449295,-172.867184,0.00021095,2]
[372912256,1752803449308,-151.0,0.00021095,2]
[372912257,1752803449317,-522.63,0.00021095,2]
[372912258,1752803449326,-588.97,0.00021095,2]
[372912259,1752803449335,-1326.95,0.00021095,2]
[372912260,1752803449344,-635.59,0.00021095,2]
[372912261,1752803449355,-1029.16,0.00021095,2]
[372912262,1752803449364,-779.11,0.00021095,2]
[372912263,1752803449373,-1340.87,0.00021095,2]
[372912264,1752803449383,-685.18,0.00021095,2]
[372912265,1752803449392,-733.38,0.00021095,2]
[372912266,1752803449402,-493.59,0.00021095,2]
[372912267,1752803449411,-493.43,0.00021095,2]
[372912268,1752803449420,-600.07349871,0.00021095,2]
[372912269,1752803449429,-598.45,0.00021095,2]
[372912270,1752803449438,-2425.12,0.00021095,2]
[372912271,1752803449447,-1316.85,0.00021095,2]
[372912272,1752803449456,-468.0,0.00021127,2]
[372912273,1752803449465,-565.28723028,0.00021127,2]
[372912274,1752803449475,-5000.0,0.00021137,2]
[372912275,1752803449484,-161.0,0.000213,4]
[372912276,1752803449494,-161.0,0.000213,4]
[372912277,1752803449503,-161.0,0.000213,4]
[372912278,1752803449512,-49023.31095588,0.000213,2]
[372912279,1752803449531,-3194.75259197,0.000213,2]
[372912280,1752803449542,-294.85224941,0.000213,2]
[372912281,1752803449553,-637.10940013,0.000213,2]
[372912283,1752803449564,-567.36853914,0.000213,2]
[372912285,1752803449576,-1500.58988188,0.000213,2]
[372912288,1752803449587,-11457.32,0.000213,2]
[372912290,1752803449599,-19637.64025744,0.000213,2]
[372912292,1752803449612,-5215.0579594,0.000213,2]
[372912294,1752803449626,-407.50811522,0.000213,2]
[372912309,1752803449770,-55.58988844,0.00016438,2]
[372912312,1752803449782,-404.98487438,0.00016438,2]
[372912314,1752803449792,-463.29208977,0.00016438,2]
[372912316,1752803449802,-458.84424433,0.00016438,2]
[372912318,1752803449812,-132.44664744,0.000213,2]
[372912320,1752803449823,-258.22,0.000213,2]
[372912331,1752803449922,-460.0,0.00016438,2]
[372912333,1752803449932,-40.0,0.00016438,2]
[372912356,1752803450152,-420.0,0.00016438,2]
[372912358,1752803450162,-460.0,0.00016438,2]
[372912360,1752803450171,-398.22477573,0.00016438,2]
[372912362,1752803450181,-460.0,0.00016438,2]
[372912364,1752803450190,-460.0,0.00016438,2]
[372912366,1752803450201,-464.13772877,0.00016438,2]
[372912368,1752803450210,-460.0,0.00016712,2]
[372912370,1752803450220,-460.0,0.00016712,2]
[372912372,1752803450230,-460.0,0.00016712,2]
[372912374,1752803450239,-460.0,0.00016986,2]
[372912376,1752803450249,-460.0,0.00016986,2]
[372912377,1752803450258,-475.00525624,0.00016986,2]
[372912380,1752803450268,-201.962651,0.00016986,2]
[372912382,1752803450278,-460.0,0.00016986,2]
[372912384,1752803450287,-338.68,0.0001726,2]
[372912386,1752803450297,-460.0,0.0001726,2]
[372912388,1752803450307,-460.0,0.00017534,2]
[372912390,1752803450317,-460.0,0.00017808,2]
[372912391,1752803450326,-201.962651,0.00018082,2]
[372912393,1752803450345,-460.0,0.00018082,2]
[372912395,1752803450364,-460.0,0.00018356,2]
[372912398,1752803450374,-460.0,0.0001863,2]
[372912400,1752803450384,-201.962651,0.00018904,2]
[372912402,1752803450393,-460.0,0.00018904,2]
[372912404,1752803450403,-460.0,0.00019178,2]
[372912406,1752803450412,-201.962651,0.00019329,2]
[372912408,1752803450422,-201.962651,0.0001998,2]
[372912410,1752803450432,-201.962651,0.00019987,2]
[372912412,1752803450448,-201.962651,0.00019989,2]
[372912424,1752803450571,-97080.42454235,0.000213,2]
[372912432,1752803450646,-732.15756489,0.000213,2]
[372912461,1752803450936,-2594.97573463,0.000213,2]
[372912692,1752803528602,5000.0,0.0001864,14]
[372912775,1752803575928,5000.0,0.0001864,14]
[372912911,1752803649405,150.0,0.0001575,2]
[372913352,1752803924332,257.719179,0.00013699,2]
[372913722,1752804129879,1636.0,0.000273,120]
[372913770,1752804153544,24900.0,0.00015363,2]
[372914524,1752804559128,-450.8,0.00016328,3]
[372914685,1752804632030,-178.91,0.00016328,3]
[372914687,1752804632040,-662.46096575,0.00016337,2]
[372914689,1752804632052,-1038.39426908,0.00016337,2]
[372914691,1752804632064,-3103.14476517,0.00016337,2]
[372914693,1752804632074,-300.0,0.00016337,2]
[372914695,1752804632083,-256.05054081,0.00016337,2]
[372914697,1752804632095,-43.94945919,0.00016337,2]
[372914699,1752804632105,-1036.35054081,0.00016337,2]
[372914701,1752804632117,-163.64945919,0.00016337,2]
[372914703,1752804632127,-169.79106204,0.00016337,2]
[372914705,1752804632137,-50.67624719,0.00016338,2]
[372914708,1752804632149,-961.60573092,0.00016338,2]
[372914710,1752804632161,-4052.80200791,0.00016338,2]
[372914713,1752804632170,-627.0485416,0.00016338,2]
[372914817,1752804637960,-1936.72412885,0.00016338,2]
[372914818,1752804638014,-2128.23548543,0.00016338,2]
[372914819,1752804638024,-376.57157054,0.00016338,2]
[372914820,1752804638034,-85.91496582,0.00016338,2]
[372914821,1752804638047,-573.58968424,0.00016338,2]
[372914822,1752804638058,-285.53958327,0.00016338,2]
[372914823,1752804638069,-1567.3008456,0.00016338,2]
[372914824,1752804638081,-617.98410226,0.00016338,2]
[372914825,1752804638092,-3468.35319916,0.00016338,2]
[372914826,1752804638105,-9918.41493004,0.00016338,2]
[372914827,1752804638121,-298.57284086,0.00016338,2]
[372914828,1752804638134,-1737.0467195,0.00016338,2]
[372914829,1752804638145,-24278.75380284,0.00016338,2]
[372914830,1752804638157,-12614.05027101,0.00016338,2]
[372914831,1752804638168,-8491.13905031,0.00016338,2]
[372914832,1752804638249,-14474.40974628,0.00016338,2]
[372914833,1752804638261,-1725.6789946,0.00016338,2]
[372914834,1752804638272,-1190.13926867,0.00016338,2]
[372914835,1752804638289,-289332.6166456,0.00016338,2]
[372914836,1752804638299,-9286.4581309,0.00016338,2]
[372914837,1752804638309,-460.0,0.00016438,2]
[372914838,1752804638319,-510.46354837,0.00016438,2]
[372914839,1752804638329,-461.65322113,0.00016438,2]
[372914840,1752804638338,-460.0,0.00016438,2]
[372914841,1752804638347,-460.0,0.00016438,2]
[372914842,1752804638484,-506.4347752,0.00016438,2]
[372914843,1752804638495,-462.91357197,0.00016438,2]
[372914844,1752804638505,-460.0,0.00016438,2]
[372914845,1752804638515,-462.84764246,0.00016438,2]
[372914846,1752804638524,-460.61893187,0.00016438,2]
[372914847,1752804638534,-465.47150746,0.00016438,2]
[372914848,1752804638543,-462.21029338,0.00016438,2]
[372914849,1752804638553,-466.35644273,0.00016438,2]
[372914850,1752804638562,-460.62625541,0.00016438,2]
[372914851,1752804638572,-506.64214284,0.00016438,2]
[372914852,1752804638582,-460.88620378,0.00016438,2]
[372914853,1752804638592,-460.40771543,0.00016438,2]
[372914854,1752804638602,-460.0,0.00016438,2]
[372914855,1752804638615,-460.0,0.00016438,2]
[372914856,1752804638625,-462.21521474,0.00016438,2]
[372914857,1752804638635,-467.83538678,0.00016438,2]
[372914858,1752804638644,-460.0,0.00016438,2]
[372914859,1752804638653,-458.35179244,0.00016438,2]
[372914860,1752804638663,-460.25257177,0.00016438,2]
[372914861,1752804638672,-460.0,0.00016438,2]
[372914862,1752804638681,-460.0,0.00016438,2]
[372914863,1752804638691,-490.91102987,0.00016438,2]
[372914864,1752804638700,-460.0,0.00016438,2]
[372914865,1752804638709,-460.62173897,0.00016438,2]
[372914866,1752804638718,-460.0,0.00016438,2]
[372914867,1752804638728,-460.90637937,0.00016438,2]
[372914868,1752804638737,-461.40694756,0.00016438,2]
[372914869,1752804638746,-460.97914749,0.00016438,2]
[372914870,1752804638756,-460.0,0.00016438,2]
[372914871,1752804638765,-460.75142993,0.00016438,2]
[372914872,1752804638775,-460.0,0.00016438,2]
[372914873,1752804638784,-460.0,0.00016438,2]
[372914874,1752804638794,-462.22035951,0.00016438,2]
[372914875,1752804638804,-460.5980276,0.00016438,2]
[372914876,1752804638813,-388.76581432,0.00016438,2]
[372914877,1752804638822,-460.78660982,0.00016438,2]
[372914878,1752804638831,-461.60560336,0.00016438,2]
[372914879,1752804638841,-460.0,0.00016438,2]
[372914880,1752804638852,-460.0,0.00016438,2]
[372914881,1752804638865,-569.79719887,0.00016438,2]
[372914882,1752804638874,-500.0,0.00016438,2]
[372914883,1752804638884,-500.0,0.00016438,2]
[372914884,1752804638894,-500.0,0.00016438,2]
[372914885,1752804638903,-500.0,0.00016438,2]
[372914886,1752804638913,-285.71388264,0.00016438,2]
[372914887,1752804638923,-460.0,0.00016438,2]
[372914888,1752804638932,-458.36801371,0.00016438,2]
[372914889,1752804638942,-460.0,0.00016438,2]
[372914890,1752804638951,-458.40963007,0.00016438,2]
[372914891,1752804638961,-460.0,0.00016438,2]
[372914892,1752804638974,-460.7172368,0.00016438,2]
[372914893,1752804638986,-460.34764606,0.00016438,2]
[372914895,1752804638995,-461.0680042,0.00016438,2]
[372914896,1752804639005,-460.0,0.00016438,2]
[372914897,1752804639014,-460.0,0.00016438,2]
[372914898,1752804639024,-462.05811311,0.00016438,2]
[372914899,1752804639034,-461.24260034,0.00016438,2]
[372914900,1752804639043,-460.62744482,0.00016438,2]
[372914901,1752804639054,-460.0,0.00016438,2]
[372914902,1752804639064,-463.9147468,0.00016438,2]
[372914903,1752804639073,-522.99310749,0.00016438,2]
[372914904,1752804639083,-198.47840836,0.00016438,2]
[372914906,1752804639092,-460.32753647,0.00016438,2]
[372914907,1752804639102,-460.0,0.00016438,2]
[372914908,1752804639116,-460.0,0.00016438,2]
[372914909,1752804639126,-460.0,0.00016438,2]
[372914910,1752804639135,-1002.56524187,0.00016438,2]
[372914911,1752804639145,-464.64178917,0.00016438,2]
[372914912,1752804639155,-463.01872696,0.00016438,2]
[372914913,1752804639164,-461.09844182,0.00016438,2]
[372914914,1752804639173,-460.81354565,0.00016438,2]
[372914915,1752804639183,-461.19290055,0.00016438,2]
[372914916,1752804639192,-460.94621317,0.00016438,2]
[372914917,1752804639202,-460.0,0.00016438,2]
[372914919,1752804639212,-460.0,0.00016438,2]
[372914920,1752804639221,-463.3530894,0.00016438,2]
[372914921,1752804639230,-462.45446784,0.00016438,2]
[372914922,1752804639239,-460.0,0.00016438,2]
[372914923,1752804639249,-373.30225151,0.00016438,2]
[372914924,1752804639258,-462.18424744,0.00016438,2]
[372914925,1752804639268,-461.64308609,0.00016438,2]
[372914927,1752804639277,-460.0,0.00016438,2]
[372914928,1752804639287,-462.96311802,0.00016438,2]
[372914929,1752804639297,-461.48949816,0.00016438,2]
[372914930,1752804639307,-461.13734265,0.00016438,2]
[372914931,1752804639317,-460.0,0.00016438,2]
[372914932,1752804639326,-461.81347459,0.00016438,2]
[372914933,1752804639336,-460.0,0.00016438,2]
[372914934,1752804639345,-460.0,0.00016438,2]
[372914935,1752804639358,-460.0,0.00016438,2]
[372914936,1752804639368,-460.0,0.00016438,2]
[372914937,1752804639378,-460.58108264,0.00016438,2]
[372914938,1752804639388,-460.0,0.00016438,2]
[372914939,1752804639398,-460.0,0.00016438,2]
[372914940,1752804639408,-460.0,0.00016438,2]
[372914941,1752804639418,-461.70375309,0.00016438,2]
[372914942,1752804639427,-461.51424271,0.00016438,2]
[372914943,1752804639437,-460.0,0.00016438,2]
[372914944,1752804639446,-460.0,0.00016438,2]
[372914945,1752804639456,-460.0,0.00016438,2]
[372914946,1752804639466,-460.0,0.00016438,2]
[372914947,1752804639476,-460.0,0.00016438,2]
[372914948,1752804639485,-460.0,0.00016438,2]
[372914949,1752804639495,-460.50771277,0.00016438,2]
[372914950,1752804639505,-464.51892482,0.00016438,2]
[372914951,1752804639515,-460.0,0.00016438,2]
[372914952,1752804639525,-460.0,0.00016438,2]
[372914953,1752804639534,-460.0,0.00016438,2]
[372914954,1752804639544,-461.30669334,0.00016438,2]
[372914956,1752804639553,-461.93340569,0.00016438,2]
[372914957,1752804639563,-460.0,0.00016438,2]
[372914958,1752804639572,-460.0,0.00016438,2]
[372914959,1752804639581,-464.22279176,0.00016438,2]
[372914961,1752804639590,-460.0,0.00016438,2]
[372914962,1752804639600,-462.84671172,0.00016438,2]
[372914964,1752804639613,-460.0,0.00016438,2]
[372914965,1752804639623,-460.0,0.00016438,2]
[372914966,1752804639633,-416.33919372,0.00016438,2]
[372914968,1752804639643,-460.0,0.00016438,2]
[372914969,1752804639653,-460.0,0.00016438,2]
[372914970,1752804639662,-460.0,0.00016438,2]
[372914971,1752804639671,-460.0,0.00016438,2]
[372914972,1752804639681,-460.0,0.00016438,2]
[372914973,1752804639691,-460.0,0.00016438,2]
[372914975,1752804639700,-463.03970623,0.00016438,2]
[372914977,1752804639711,-460.0,0.00016438,2]
[372914979,1752804639720,-461.8000095,0.00016438,2]
[372914981,1752804639730,-460.0,0.00016438,2]
[372914983,1752804639739,-460.0,0.00016438,2]
[372914984,1752804639749,-460.0,0.00016438,2]
[372914985,1752804639760,-191.54,0.00016438,2]
[372914986,1752804639769,-460.0,0.00016438,2]
[372914987,1752804639779,-460.0,0.00016438,2]
[372914988,1752804639788,-460.0,0.00016438,2]
[372914989,1752804639798,-461.05198855,0.00016438,2]
[372914990,1752804639807,-460.0,0.00016438,2]
[372914991,1752804639817,-460.0,0.00016438,2]
[372914992,1752804639826,-432.37312056,0.00016438,2]
[372914993,1752804639835,-460.0,0.00016438,2]
[372914994,1752804639845,-460.0,0.00016438,2]
[372914995,1752804639854,-465.59525994,0.00016438,2]
[372914996,1752804639864,-460.0,0.00016438,2]
[372914997,1752804639874,-460.0,0.00016438,2]
[372914998,1752804639883,-460.0,0.00016438,2]
[372914999,1752804639893,-460.0,0.00016438,2]
[372915000,1752804639903,-460.0,0.00016438,2]
[372915001,1752804639913,-460.0,0.00016438,2]
[372915002,1752804639922,-461.97402793,0.00016438,2]
[372915003,1752804639932,-219.79892354,0.00016438,2]
[372915004,1752804639941,-460.0,0.00016438,2]
[372915005,1752804639951,-460.0,0.00016438,2]
[372915006,1752804639960,-460.0,0.00016438,2]
[372915007,1752804639973,-460.0,0.00016438,2]
[372915008,1752804639983,-460.0,0.00016438,2]
[372915009,1752804639992,-153.97383067,0.00016438,2]
[372915010,1752804640002,-460.0,0.00016438,2]
[372915011,1752804640012,-460.0,0.00016438,2]
[372915012,1752804640022,-460.0,0.00016438,2]
[372915013,1752804640032,-362.8928951,0.00016438,2]
[372915014,1752804640043,-460.0,0.00016438,2]
[372915015,1752804640054,-460.01110601,0.00016438,2]
[372915016,1752804640064,-468.49643586,0.00016438,2]
[372915017,1752804640073,-460.0,0.00016438,2]
[372915018,1752804640083,-460.0,0.00016438,2]
[372915019,1752804640093,-461.01073327,0.00016438,2]
[372915020,1752804640103,-460.0,0.00016438,2]
[372915021,1752804640115,-460.0,0.00016438,2]
[372915023,1752804640125,-460.0,0.00016438,2]
[372915025,1752804640134,-461.3721009,0.00016438,2]
[372915027,1752804640144,-460.0,0.00016438,2]
[372915029,1752804640153,-460.0,0.00016438,2]
[372915031,1752804640164,-460.0,0.00016438,2]
[372915033,1752804640173,-460.0,0.00016438,2]
[372915035,1752804640184,-460.0,0.00016438,2]
[372915037,1752804640194,-460.0,0.00016438,2]
[372915039,1752804640203,-460.0,0.00016438,2]
[372915041,1752804640213,-460.0,0.00016438,2]
[372915043,1752804640223,-460.0,0.00016438,2]
[372915044,1752804640232,-460.0,0.00016438,2]
[372915046,1752804640241,-460.0,0.00016438,2]
[372915048,1752804640251,-460.0,0.00016438,2]
[372915050,1752804640260,-460.0,0.00016438,2]
[372915052,1752804640270,-462.64437566,0.00016438,2]
[372915054,1752804640280,-461.33967462,0.00016438,2]
[372915056,1752804640289,-460.0,0.00016438,2]
[372915058,1752804640298,-500.0,0.00016438,2]
[372915060,1752804640308,-502.24900554,0.00016438,2]
[372915062,1752804640318,-462.78210972,0.00016438,2]
[372915064,1752804640327,-405.45942984,0.00016438,2]
[372915066,1752804640336,-463.22346639,0.00016438,2]
[372915068,1752804640345,-460.0,0.00016438,2]
[372915070,1752804640357,-460.0,0.00016438,2]
[372915072,1752804640366,-462.30044154,0.00016438,2]
[372915074,1752804640375,-460.0,0.00016438,2]
[372915076,1752804640385,-460.0,0.00016438,2]
[372915078,1752804640394,-460.0,0.00016438,2]
[372915080,1752804640404,-460.0,0.00016438,2]
[372915082,1752804640413,-501.49612056,0.00016438,2]
[372915084,1752804640423,-460.0,0.00016438,2]
[372915085,1752804640432,-460.0,0.00016438,2]
[372915086,1752804640442,-482.95,0.00016438,2]
[372915087,1752804640451,-460.0,0.00016438,2]
[372915088,1752804640461,-460.0,0.00016438,2]
[372915089,1752804640471,-460.0,0.00016438,2]
[372915090,1752804640481,-460.0,0.00016438,2]
[372915092,1752804640491,-460.0,0.00016438,2]
[372915093,1752804640500,-460.0,0.00016438,2]
[372915094,1752804640510,-460.0,0.00016438,2]
[372915095,1752804640520,-490.63122503,0.00016438,2]
[372915096,1752804640530,-462.97687815,0.00016438,2]
[372915097,1752804640539,-460.0,0.00016438,2]
[372915098,1752804640549,-460.0,0.00016438,2]
[372915099,1752804640559,-321.94627158,0.00016438,2]
[372915100,1752804640568,-460.0,0.00016438,2]
[372915101,1752804640577,-460.0,0.00016438,2]
[372915102,1752804640587,-460.0,0.00016438,2]
[372915103,1752804640596,-460.0,0.00016438,2]
[372915104,1752804640607,-460.0,0.00016438,2]
[372915105,1752804640616,-460.0,0.00016438,2]
[372915106,1752804640626,-460.0,0.00016438,2]
[372915107,1752804640636,-460.0,0.00016438,2]
[372915108,1752804640646,-460.0,0.00016438,2]
[372915109,1752804640656,-578.60516769,0.00016438,2]
[372915110,1752804640666,-464.73812866,0.00016438,2]
[372915111,1752804640676,-460.0,0.00016438,2]
[372915112,1752804640686,-460.0,0.00016438,2]
[372915113,1752804640696,-461.58991504,0.00016438,2]
[372915114,1752804640706,-229.24292489,0.00016438,2]
[372915115,1752804640715,-460.0,0.00016438,2]
[372915116,1752804640725,-460.0,0.00016438,2]
[372915117,1752804640735,-460.0,0.00016438,2]
[372915118,1752804640745,-461.48969389,0.00016438,2]
[372915119,1752804640755,-462.55340806,0.00016438,2]
[372915120,1752804640764,-465.6567098,0.00016438,2]
[372915121,1752804640773,-461.64465599,0.00016438,2]
[372915122,1752804640784,-460.0,0.00016438,2]
[372915123,1752804640796,-500.0,0.00016438,2]
[372915124,1752804640806,-500.0,0.00016438,2]
[372915125,1752804640815,-500.0,0.00016438,2]
[372915126,1752804640826,-500.0,0.00016438,2]
[372915127,1752804640835,-500.0,0.00016438,2]
[372915128,1752804640844,-500.0,0.00016438,2]
[372915129,1752804640856,-500.0,0.00016438,2]
[372915130,1752804640866,-460.0,0.00016438,2]
[372915131,1752804640876,-500.0,0.00016438,2]
[372915132,1752804640886,-453.85,0.00016438,2]
[372915133,1752804640895,-460.0,0.00016438,2]
[372915134,1752804640904,-460.0,0.00016438,2]
[372915135,1752804640914,-464.03538361,0.00016438,2]
[372915137,1752804640924,-460.0,0.00016438,2]
[372915138,1752804640933,-462.12568775,0.00016438,2]
[372915139,1752804640942,-500.0,0.00016438,2]
[372915140,1752804640951,-500.0,0.00016438,2]
[372915141,1752804640961,-518.10790517,0.00016438,2]
[372915142,1752804640976,-460.0,0.00016438,2]
[372915143,1752804640986,-460.0,0.00016438,2]
[372915144,1752804640996,-464.32399154,0.00016438,2]
[372915145,1752804641006,-460.0,0.00016438,2]
[372915146,1752804641016,-460.89375023,0.00016438,2]
[372915147,1752804641026,-460.0,0.00016438,2]
[372915148,1752804641035,-460.0,0.00016438,2]
[372915149,1752804641046,-460.0,0.00016438,2]
[372915150,1752804641056,-154.1923078,0.00016438,2]
[372915151,1752804641065,-460.0,0.00016438,2]
[372915152,1752804641075,-460.0,0.00016438,2]
[372915153,1752804641084,-460.0,0.00016438,2]
[372915154,1752804641094,-460.0,0.00016438,2]
[372915155,1752804641103,-460.0,0.00016438,2]
[372915157,1752804641113,-460.0,0.00016438,2]
[372915158,1752804641123,-461.15742008,0.00016438,2]
[372915159,1752804641132,-461.31278745,0.00016438,2]
[372915160,1752804641142,-460.0,0.00016438,2]
[372915161,1752804641151,-1028.9,0.00016438,2]
[372915162,1752804641161,-460.0,0.00016438,2]
[372915163,1752804641170,-460.0,0.00016438,2]
[372915164,1752804641179,-460.0,0.00016438,2]
[372915165,1752804641189,-460.0,0.00016438,2]
[372915166,1752804641198,-463.25652406,0.00016438,2]
[372915167,1752804641207,-460.0,0.00016438,2]
[372915168,1752804641217,-460.0,0.00016438,2]
[372915169,1752804641228,-460.0,0.00016438,2]
[372915170,1752804641237,-460.0,0.00016438,2]
[372915171,1752804641246,-460.0,0.00016438,2]
[372915172,1752804641365,-460.0,0.00016438,2]
[372915173,1752804641374,-462.71467688,0.00016438,2]
[372915174,1752804641384,-340.80816369,0.00016438,2]
[372915175,1752804641393,-460.0,0.00016438,2]
[372915176,1752804641403,-281.60881534,0.00016438,2]